[Event "Croatian 1A League 2022"]
[Site "Porec"]
[Date "2022.09.29"]
[Round "6.9"]
[White "Christiansen, Johan-Sebastian"]
[Black "Lalic, Bogdan"]
[Result "1/2-1/2"]
[ECO "B44"]
[WhiteElo "2583"]
[BlackElo "2393"]
[Annotator "TA"]
[PlyCount "41"]
[EventDate "2022.09.24"]
[EventType "team-tourn"]
[EventCountry "CRO"]
[SourceTitle "playchess.com"]
[Source "ChessBase"]
[SourceQuality "1"]
[TimeControl "40/5400+30:1800+30"]

{[%evp 9,41,19,8,16,6,16,-13,14,0,12,9,9,14,0,0,0,0,0,0,-21,-19,-24,-12,-29,-32,-38,-35,-44,-37,-55,-26,-51,0,0]} 1. e4 {[%emt 0:04:55]} c5 {[%emt 0:00:08]} 2. Nf3 {[%emt 0:00:16]} e6 {[%emt 0:00:11]} 3. g3 {[%emt 0:00:06]} Nc6 {[%emt 0:00:19]} 4. d4 {[%emt 0:00:05]} cxd4 {[%emt 0:00:11]} 5. Nxd4 {[%emt 0:00:03]} d5 {[%emt 0:08:26]} 6. Bg2 {[%emt 0:00:27][%cal Bf1g2,Bg2e4,Be4f3][%mdl 32] B44: Sicilian: Taimanov: 5 Nb5.} dxe4 {[%emt 0:02:29]} 7. Nxc6 {[%emt 0:00:05][%csl Gc6][%cal Rd1d8] [#]} Qxd1+ {[%emt 0:00:07]} 8. Kxd1 {[%emt 0:00:03][%cal Og2e4]} bxc6 {[%emt 0:00:05][%cal Bb7c6,Bc6c5,Bc5d4][%mdl 32]} 9. Bxe4 {[%emt 0:00:04]} Bb7 {[%emt 0:00:07]} 10. Bf3 {[%emt 0:00:01]} O-O-O+ {[%emt 0:00:31] [#]} 11. Ke2 $146 {[%emt 0:00:41]} ({Predecessor:} 11. Ke1 Ne7 12. Nd2 c5 13. Bxb7+ Kxb7 14. Nc4 Nc6 15. c3 Be7 16. Ke2 Rd5 17. Be3 {1-0 (49) Christiansen,J (2607)-Portela Peleteiro,A (2354) Maia 2022}) 11... Ba6+ {[%emt 0:00:53]} 12. Ke1 {[%emt 0:00:14]} c5 {[%emt 0:00:09]} 13. Nc3 {[%emt 0:03:09]} Ne7 {[%emt 0:00:58][%cal Bg8e7,Be7f5,Bf5d4][%mdl 32]} 14. Ne2 {[%emt 0:18:00]} Nf5 {[%emt 0:01:15]} 15. Bd2 {[%emt 0:02:18]} Be7 {[%emt 0:02:04]} 16. Bc3 {[%emt 0:22:33]} (16. Ba5 {looks sharper.} Rd7 17. Rd1 Bd8 18. Rxd7 Kxd7 19. Bc3) 16... Nd4 {[%emt 0:02:58]} 17. Nxd4 {[%emt 0:00:43]} cxd4 {[%emt 0:00:06]} 18. Ba5 {[%emt 0:00:09]} Rd7 {[%emt 0:00:07]} 19. Rd1 {[%emt 0:02:29]} f5 {[%emt 0:07:22]} (19... Kb8 $5 {[%cal Rh8c8]} 20. Bc6 Rd6 $17) 20. c3 {[%emt 0:07:06]} Bf6 {[%emt 0:00:47]} ({Black should try} 20... Bb7 $15 21. Bxb7+ Rxb7) 21. cxd4 {[%emt 0:15:07] Weighted Error Value: White=0.08 (flawless) /Black=0.06 (flawless)} 1/2-1/2

[Event "Croatian 1A League 2022"]
[Site "Porec"]
[Date "2022.09.29"]
[Round "6.10"]
[White "Zaja, Ivan"]
[Black "Martinovic, Sasa"]
[Result "0-1"]
[ECO "E71"]
[WhiteElo "2417"]
[BlackElo "2546"]
[Annotator "TA"]
[PlyCount "70"]
[EventDate "2022.09.24"]
[EventType "team-tourn"]
[EventCountry "CRO"]
[SourceTitle "playchess.com"]
[Source "ChessBase"]
[SourceQuality "1"]
[TimeControl "40/5400+30:1800+30"]

{[%evp 11,70,24,47,54,37,25,27,25,71,52,41,52,62,45,63,48,60,20,21,26,70,46,74,73,72,73,76,0,0,0,15,-31,-28,-78,-89,-86,-100,-61,-66,-320,-329,-333,-316,-338,-306,-333,-333,-315,-296,-712,-349,-561,-274,-29979,-29980,-29988,-29987,-29987,-29988,-29988,-933]} 1. d4 {[%emt 0:00:03]} Nf6 {[%emt 0:00:04]} 2. c4 {[%emt 0:00:09]} g6 {[%emt 0:00:04]} 3. Nc3 {[%emt 0:00:21]} Bg7 {[%emt 0:00:05]} 4. e4 {[%emt 0:00:10]} d6 {[%emt 0:00:04]} 5. h3 {[%emt 0:00:40]} O-O {[%emt 0:00:06]} 6. Be3 {[%emt 0:00:03]} Na6 {[%emt 0:01:16]} 7. g4 {[%emt 0:00:34] E71: King's Indian: 4 e4 d6 5 h3.} e5 {[%emt 0:03:19] The modern move.} 8. d5 {[%emt 0:00:09]} Nc5 {[%emt 0:00:04]} 9. Qc2 {[%emt 0:01:37] White has an edge.} a5 {[%emt 0:04:26]} (9... c6 $11 {is more appropriate.}) 10. Nge2 {[%emt 0:02:44]} c6 {[%emt 0:02:39]} 11. Ng3 {[%emt 0:02:13]} Bd7 {[%emt 0:02:04]} 12. Be2 {[%emt 0:02:32]} cxd5 {[%emt 0:02:02] [#]} 13. exd5 $146 {[%emt 0:13:41]} ({Predecessor:} 13. cxd5 a4 14. Qd1 Qa5 15. Bd2 Qb6 16. Rb1 Rfc8 17. Kf1 Qd8 18. h4 Rab8 19. f3 {0-1 (46) Dinstuhl,V (2340)-Sieglen,J (2340) Bad Godesberg 1991}) 13... a4 {[%emt 0:05:16]} 14. g5 {[%emt 0:08:49]} Ne8 {[%emt 0:00:04]} 15. h4 {[%emt 0:01:55][%cal Bh3h4,Bh4h5][%mdl 32]} Qa5 {[%emt 0:18:14][%cal Oe5e4]} 16. O-O-O {[%emt 0:13:06]} a3 {[%emt 0:03:55][%cal Oe5e4] Hoping for ...e4!} 17. b3 $1 {[%emt 0:11:37]} Rc8 {[%emt 0:00:10][%cal Ob7b5]} 18. h5 {[%emt 0:04:05]} b5 {[%emt 0:01:35]} 19. Bxc5 {[%emt 0:01:27]} (19. f3 $16) 19... Rxc5 $11 {[%emt 0:00:44]} 20. Nce4 {[%emt 0:00:22]} Rc8 {[%emt 0:01:53]} 21. c5 {[%emt 0:12:57]} ({Reject} 21. h6 Bh8 $11) (21. Qd2 $11 {is superior.} Qd8 22. hxg6 (22. h6 Bh8 $15)) 21... dxc5 $15 {[%emt 0:01:11][%cal Oc5c4]} 22. d6 {[%emt 0:01:43]} (22. Qd2 $11 {remains equal.} Qxd2+ 23. Kxd2) 22... c4 $1 $17 {[%emt 0:10:11] ...cxb3 is the strong threat.} 23. bxc4 {[%emt 0:00:36]} bxc4 {[%emt 0:00:01]} 24. hxg6 {[%emt 0:02:19]} hxg6 {[%emt 0:05:59]} 25. Nc3 $2 {[%emt 0:04:52][%mdl 8192] [#] Against Ba4. Now White is beyond hope.} ({White should play} 25. Qc3 $1 $15 Qb6 26. Qxa3) 25... e4 $1 $19 {[%emt 0:04:24]} 26. Ngxe4 {[%emt 0:04:57] [#]} f5 $1 {[%emt 0:10:10] Really sharp!} 27. gxf6 {[%emt 0:00:27]} Nxf6 {[%emt 0:00:02]} 28. Nxf6+ {[%emt 0:00:56]} Rxf6 {[%emt 0:00:02]} 29. Nd5 {[%emt 0:00:34]} Kf8 {[%emt 0:01:08]} 30. Rd4 $2 {[%emt 0:07:49]} ({Don't go for} 30. Nxf6 $2 Bxf6 31. Bg4 Bxg4 $19) (30. Qc3 Qxc3+ 31. Nxc3) 30... Bf5 {[%emt 0:09:17]} (30... Rxf2 $142 31. Qd2 Qb5) 31. d7 $2 {[%emt 0:00:35]} (31. Qc3 Qxc3+ 32. Nxc3) 31... Rb8 {[%emt 0:00:03]} (31... Rd8 $142 32. Qxc4 Rd6) 32. Nxf6 $2 {[%emt 0:01:52]} (32. Qc3 $19 Ra6 33. Nb4) 32... Bxc2 {[%emt 0:03:39] A strong pair of Bishops. Black mates.} 33. Rxc4 {[%emt 0:00:06]} Rb1+ {[%emt 0:02:08]} 34. Kxc2 {[%emt 0:00:01]} Rb2+ {[%emt 0:00:04]} 35. Kd3 {[%emt 0:00:11]} Qd2+ {[%emt 0:00:18][%mdl 64] Deflection, Double Attack.  Weighted Error Value: White=0.67/Black=0.45} 0-1

[Event "Croatian 1A League 2022"]
[Site "Porec"]
[Date "2022.09.29"]
[Round "6.11"]
[White "Rogic, Davor"]
[Black "Kovacevic, Blazimir"]
[Result "1/2-1/2"]
[ECO "B04"]
[WhiteElo "2458"]
[BlackElo "2405"]
[Annotator "TA"]
[PlyCount "65"]
[EventDate "2022.09.24"]
[EventType "team-tourn"]
[EventCountry "CRO"]
[SourceTitle "playchess.com"]
[Source "ChessBase"]
[SourceQuality "1"]
[TimeControl "40/5400+30:1800+30"]

{[%evp 12,65,27,29,35,5,29,10,25,0,26,-58,-48,-70,-62,-70,-30,-74,-50,-108,-95,-100,-86,-78,-77,-74,-60,-59,-63,-79,-92,-80,-80,-92,-72,-128,-131,-169,-137,-129,-127,-136,-136,-207,-213,-207,-75,-74,-16,-60,-46,-31,-39,-54,-68,-97]} 1. e4 {[%emt 0:00:16]} Nf6 {[%emt 0:00:07]} 2. e5 {[%emt 0:00:39]} Nd5 {[%emt 0:00:05]} 3. d4 {[%emt 0:00:23]} d6 {[%emt 0:00:09]} 4. Nf3 {[%emt 0:00:22]} dxe5 {[%emt 0:00:48]} 5. Nxe5 {[%emt 0:00:45]} Nd7 {[%emt 0:00:49]} 6. Nf3 {[%emt 0:07:30]} e6 {[%emt 0:00:28]} 7. c4 {[%emt 0:01:51]} Bb4+ {[%emt 0:01:06] B04: Alekhine's Defence: 4 Nf3.} 8. Nbd2 {[%emt 0:02:52]} N5f6 {[%emt 0:00:12]} 9. Be2 {[%emt 0:02:43]} b6 {[%emt 0:01:15] Inhibits c5. The position is equal.} 10. Qa4 {[%emt 0:05:18]} Bd6 {[%emt 0:00:06] [#]} 11. c5 $146 {[%emt 0:04:00]} (11. b4 $11) ({Predecessor:} 11. Ne5 Bb7 12. Nc6 Bxc6 13. Qxc6 O-O 14. Nf3 Bb4+ 15. Kf1 Bd6 16. g3 e5 17. dxe5 Bxe5 {½-½ (63) Szabo,K (2500)-Aloma Vidal,R (2393) Gibraltar 2008}) 11... bxc5 $15 {[%emt 0:01:43]} 12. dxc5 {[%emt 0:00:07]} Bxc5 {[%emt 0:02:19]} 13. Nb3 {[%emt 0:10:31]} O-O {[%emt 0:08:50]} 14. O-O {[%emt 0:04:50]} Bd6 {[%emt 0:08:19]} 15. Bg5 {[%emt 0:07:09]} (15. Na5 $15) 15... h6 {[%emt 0:07:01]} 16. Bh4 {[%emt 0:01:22]} Nb6 {[%emt 0:02:06]} 17. Qa5 {[%emt 0:04:30]} Nbd5 {[%emt 0:01:20]} 18. Rfd1 {[%emt 0:08:26]} Bb4 {[%emt 0:09:48]} 19. Qa4 {[%emt 0:00:45][%cal Od1d5]} Bd7 {[%emt 0:11:30]} 20. Qa6 {[%emt 0:00:54]} Qc8 {[%emt 0:02:26]} 21. Qc4 {[%emt 0:02:36]} Rb8 {[%emt 0:00:44]} 22. Qd4 {[%emt 0:04:24]} a5 {[%emt 0:11:21]} 23. Ne5 {[%emt 0:11:08] [#]} (23. Rac1 $142) 23... c5 $1 $17 {[%emt 0:03:24]} 24. Qc4 {[%emt 0:00:46]} Bb5 {[%emt 0:01:46]} 25. Qc2 {[%emt 0:00:12]} Bxe2 {[%emt 0:01:31]} 26. Qxe2 {[%emt 0:00:05]} a4 {[%emt 0:00:18]} 27. Nd2 {[%emt 0:04:16] [#]} (27. Bxf6 $17 {was called for.} gxf6 28. Ng4) 27... a3 $1 $19 {[%emt 0:10:29]} 28. bxa3 {[%emt 0:00:11]} Bxa3 {[%emt 0:06:52]} (28... Bc3 $19 {White must now prevent ...Nf4.} 29. Nec4 Bxa1 30. Rxa1 Ra8) 29. Ndc4 {[%emt 0:00:40] And now Bxf6 would win.} Qa6 {[%emt 0:02:26]} ({Much worse is} 29... Nc3 30. Qf3 Nxd1 31. Rxd1 $11) ({Better is} 29... Bb4 $17 30. Bxf6 Nxf6) 30. Qd3 {[%emt 0:04:19] Inhibits Nc3. Threatens to win with Bxf6.} Bb4 {[%emt 0:01:09] Black is slightly better.} 31. Bxf6 {[%emt 0:02:27]} Nxf6 {[%emt 0:00:16]} 32. a3 {[%emt 0:00:18]} Ra8 $1 {[%emt 0:03:32]} 33. Qc2 {[%emt 0:05:08] Weighted Error Value: White=0.25 (precise) /Black=0.16 (very precise)} 1/2-1/2

[Event "Croatian 1A League 2022"]
[Site "Porec"]
[Date "2022.09.29"]
[Round "6.12"]
[White "Loncar, Robert"]
[Black "Kurajica, Bojan"]
[Result "0-1"]
[ECO "B42"]
[WhiteElo "2367"]
[BlackElo "2488"]
[Annotator "TA"]
[PlyCount "88"]
[EventDate "2022.09.24"]
[EventType "team-tourn"]
[EventCountry "CRO"]
[SourceTitle "playchess.com"]
[Source "ChessBase"]
[SourceQuality "1"]
[TimeControl "40/5400+30:1800+30"]

{[%evp 14,88,25,30,31,2,18,18,17,-16,-20,-32,-48,-51,-59,-46,-46,-55,-60,-101,-99,-103,-93,-97,-73,-141,-144,-238,-237,-241,-241,-235,-213,-289,-290,-277,-275,-299,-267,-257,-285,-350,-339,-447,-398,-416,-421,-438,-285,-359,-218,-448,-460,-652,-632,-622,-446,-1666,-1574,-2066,-2004,-2329,-2283,-29984,-29985,-29987,-2909,-29988,-29989,-29991,-29990,-29990,-29986,-29992,-29992,-29997,-29998]} 1. e4 {[%emt 0:08:51]} c5 {[%emt 0:00:10]} 2. Nf3 {[%emt 0:00:10]} e6 {[%emt 0:00:20]} 3. d4 {[%emt 0:00:18]} cxd4 {[%emt 0:00:04]} 4. Nxd4 {[%emt 0:00:05]} a6 {[%emt 0:00:06]} 5. Bd3 {[%emt 0:01:16]} Qc7 {[%emt 0:04:21]} 6. Nc3 {[%emt 0:08:47]} Nf6 {[%emt 0:01:36]} 7. Qe2 {[%emt 0:00:42]} d6 {[%emt 0:00:11]} 8. O-O {[%emt 0:02:45]} Nbd7 {[%emt 0:04:15] B42: Sicilian: Kan Variation: 5 Bd3.} 9. Kh1 {[%emt 0:03:14]} g6 {[%emt 0:09:39]} 10. f4 {[%emt 0:07:48]} Bg7 $1 {[%emt 0:00:37] The position is equal.} 11. Nf3 {[%emt 0:06:13]} O-O $1 {[%emt 0:02:44]} 12. Bd2 {[%emt 0:06:07]} b5 {[%emt 0:08:54] [#]} 13. a4 $146 {[%emt 0:03:50]} ({Predecessor:} 13. Rae1 Bb7 14. a4 b4 15. Nd1 a5 16. c3 Nc5 17. e5 Nd5 18. Bb5 Rfd8 19. Nf2 {0-1 (35) Dominguez,L (1999)-Zuluaga Mancilla,C (2221) Pereira 2022}) 13... b4 {[%emt 0:04:09]} 14. Nd1 {[%emt 0:00:04]} a5 {[%emt 0:00:48]} 15. Nd4 {[%emt 0:01:10]} Bb7 {[%emt 0:04:03][%cal Of6e4]} 16. Nb5 {[%emt 0:01:36] [#]} Qc6 {[%emt 0:00:53][%cal Rf6e4]} 17. Nf2 {[%emt 0:05:54]} Nc5 {[%emt 0:01:05][%cal Rc5e4]} 18. Rfe1 {[%emt 0:05:59]} Nfd7 $40 {[%emt 0:07:45][%cal Bf6d7,Bd7c5,Bc5e4][%mdl 160] Black wants a kill.} 19. Ra2 {[%emt 0:06:01]} (19. c3 $142) 19... f5 $17 {[%emt 0:04:51] Black is more active.} 20. Qf1 {[%emt 0:01:07]} (20. c3 $17 {is a better defense.}) 20... fxe4 $19 {[%emt 0:06:16]} 21. Nxe4 {[%emt 0:00:44]} Nxd3 {[%emt 0:03:18]} ({Not} 21... Nxe4 22. Bxe4 d5 23. Bf3 $17) 22. cxd3 {[%emt 0:05:03]} Nc5 {[%emt 0:06:26]} ({Inferior is} 22... Qd5 23. Raa1 $17) 23. Nbxd6 {[%emt 0:03:04]} Nxe4 {[%emt 0:00:26]} 24. Nxe4 {[%emt 0:00:23]} Qd5 {[%emt 0:00:38]} 25. Raa1 {[%emt 0:02:24]} Bxb2 {[%emt 0:01:28] This bishop pair is nice.} 26. Rab1 {[%emt 0:00:19]} Bg7 {[%emt 0:00:19]} 27. Rbc1 {[%emt 0:01:57]} Rac8 {[%emt 0:01:32]} 28. h3 {[%emt 0:05:46]} Rfd8 {[%emt 0:06:53]} 29. Rxc8 {[%emt 0:01:03]} Rxc8 {[%emt 0:00:55]} (29... Bxc8 $2 {loses.} 30. Be3 $19) 30. Kh2 {[%emt 0:03:36]} Rd8 {[%emt 0:05:50]} 31. Re3 {[%emt 0:02:35]} Ba6 {[%emt 0:03:27][%cal Ra6d3]} 32. Nf2 {[%emt 0:03:39]} (32. Ng5 Bxd3 33. Qe1) 32... b3 {[%emt 0:00:44] Threatens to win with ...b2.} 33. Qb1 {[%emt 0:00:57]} (33. Bc1 $142 Rc8 34. Qe1) 33... b2 {[%emt 0:00:53]} 34. Rg3 {[%emt 0:01:06]} Qd4 {[%emt 0:02:23]} 35. Be3 {[%emt 0:02:47]} (35. Nd1 $142) 35... Qxa4 {[%emt 0:00:24] White must now prevent ...Qa1.} 36. d4 {[%emt 0:00:27]} Qa1 {[%emt 0:00:28]} 37. Qe4 {[%emt 0:00:03]} b1=Q {[%emt 0:00:27][%csl Ga1][%cal Rb1g1]} 38. Qxe6+ {[%emt 0:00:01]} Kh8 {[%emt 0:00:11][%csl Ga1][%cal Rb1g1]} 39. Rg5 {[%emt 0:00:04]} Qg1+ {[%emt 0:04:07]} 40. Kg3 {[%emt 0:00:00]} Qae1 {[%emt 0:00:00] Black mates.} 41. Re5 {[%emt 0:00:15]} Bb7 {[%emt 0:09:34]} 42. d5 {[%emt 0:00:05]} Rf8 {[%emt 0:03:14]} 43. Bd4 {[%emt 0:02:23]} Qd2 {[%emt 0:02:04][%csl Gf8][%cal Rd2f4]} 44. Be3 {[%emt 0:00:28] [#]} Qgxf2+ $3 {[%emt 0:00:13] White got outplayed after the opening.  Weighted Error Value: White=0.84/Black=0.16 (very precise)} 0-1

[Event "Croatian 1A League 2022"]
[Site "Porec"]
[Date "2022.09.29"]
[Round "6.13"]
[White "Shevchenko, Kirill"]
[Black "Kaczur, Florian"]
[Result "1-0"]
[ECO "C09"]
[WhiteElo "2645"]
[BlackElo "2483"]
[Annotator "TA"]
[PlyCount "55"]
[EventDate "2022.09.24"]
[EventType "team-tourn"]
[EventCountry "CRO"]
[SourceTitle "playchess.com"]
[Source "ChessBase"]
[SourceQuality "1"]
[TimeControl "40/5400+30:1800+30"]

{[%evp 11,55,18,34,5,15,15,21,19,6,12,3,-13,57,65,90,91,108,100,126,84,93,83,197,188,193,180,221,218,210,234,222,179,237,225,305,316,310,296,303,259,265,0,319,306,347,339]} 1. e4 {[%emt 0:00:03]} e6 {[%emt 0:00:23]} 2. d4 {[%emt 0:01:12]} d5 {[%emt 0:00:10]} 3. Nd2 {[%emt 0:00:49]} c5 {[%emt 0:00:18]} 4. Ngf3 {[%emt 0:00:39]} Nc6 {[%emt 0:01:29]} 5. exd5 {[%emt 0:01:03]} exd5 {[%emt 0:00:34]} 6. Bb5 {[%emt 0:00:21]} Qe7+ {[%emt 0:01:26] is currently scoring better than 6...Bd6.} 7. Qe2 {[%emt 0:09:25] C09: French Tarrasch: 3...c5 4 exd5 exd5 5 Ngf3 Nc6.} Qxe2+ {[%emt 0:00:16]} 8. Kxe2 {[%emt 0:00:33]} a6 {[%emt 0:00:58]} 9. Bxc6+ {[%emt 0:00:26] The position is equal.} bxc6 {[%emt 0:00:03]} 10. Re1 {[%emt 0:07:35]} f6 {[%emt 0:01:58]} 11. Kf1+ {[%emt 0:22:58]} Kd7 {[%emt 0:03:29]} (11... Kf7 $11) 12. Nb3 $14 {[%emt 0:03:26] [#]} cxd4 $146 {[%emt 0:31:23]} ({Predecessor:} 12... c4 13. Na5 Bb4 14. Bd2 Bd6 15. b3 cxb3 16. axb3 Ne7 17. c4 Kc7 18. c5 Rb8 19. cxd6+ Kxd6 20. Rxe7 {1-0 (20) Andrejevs,A (2204)-Kairbekova,A (2132) Chess.com INT 2021}) 13. Nfxd4 {[%emt 0:00:16][%cal Bf3d4,Bd4e6,Be6c5][%mdl 32]} a5 {[%emt 0:02:53]} 14. Ne6 $36 {[%emt 0:03:56][%mdl 2048] White is on the roll. White has more active pieces. Pair of Knights!} Bd6 {[%emt 0:03:09]} 15. Bd2 {[%emt 0:12:57][%cal Bc1d2,Bd2b4,Bb4c5][%mdl 32]} (15. Nxg7 a4) 15... a4 {[%emt 0:06:08]} 16. Nbc5+ {[%emt 0:02:16]} Bxc5 {[%emt 0:00:16]} (16... Ke8 $16) 17. Nxc5+ $18 {[%emt 0:00:05]} Kd8 {[%emt 0:00:09]} 18. Ne6+ {[%emt 0:06:09]} Kd7 {[%emt 0:04:39]} 19. Bb4 {[%emt 0:03:27]} Nh6 {[%emt 0:04:35]} 20. Nxg7 {[%emt 0:01:14]} Kc7 {[%emt 0:01:00]} 21. Bc5 {[%emt 0:03:15] Black must now prevent Re7+.} Bd7 {[%emt 0:02:54]} (21... Nf5 $142 22. Ne6+ (22. Ne8+ Rxe8 23. Rxe8 Ba6+ 24. Re2 Re8 $16) 22... Kb7) 22. Re7 {[%emt 0:02:37][%cal Be1e7,Be7f7,Bf7f6][%mdl 32]} Ng8 {[%emt 0:00:30]} 23. Rf7 {[%emt 0:01:20] [#] Strongly threatening Ne6+.} ({Less strong is} 23. Ne6+ Kc8 24. Rxd7 Kxd7 $14) 23... Nh6 {[%emt 0:00:40][%cal Bg8h6,Bh6g4,Bg4e5,Be5g4][%mdl 32]} 24. Rxf6 {[%emt 0:00:45]} Ng4 {[%emt 0:00:13]} 25. Rf7 {[%emt 0:01:11] aiming for Re1.} Ne5 {[%emt 0:01:02]} 26. Rf6 {[%emt 0:02:29] Hoping for Bd6+.} Ng4 $1 {[%emt 0:00:21]} 27. Bd6+ {[%emt 0:01:57]} ({Don't do} 27. Rf7 Ne5 $18) 27... Kb6 {[%emt 0:00:16]} 28. Rf7 {[%emt 0:02:20] Weighted Error Value: White=0.30/Black=0.24 (precise)} 1-0

[Event "Croatian 1A League 2022"]
[Site "Porec"]
[Date "2022.09.29"]
[Round "6.14"]
[White "Janzelj, Tim"]
[Black "Erdos, Viktor"]
[Result "1/2-1/2"]
[ECO "D85"]
[WhiteElo "2456"]
[BlackElo "2597"]
[Annotator "TA"]
[PlyCount "61"]
[EventDate "2022.09.24"]
[EventType "team-tourn"]
[EventCountry "CRO"]
[SourceTitle "playchess.com"]
[Source "ChessBase"]
[SourceQuality "1"]
[TimeControl "40/5400+30:1800+30"]

{[%evp 9,61,13,4,0,0,0,0,0,0,0,0,0,0,0,-2,0,-7,-15,0,0,0,0,0,-9,0,-38,0,0,0,-6,0,0,0,0,0,0,0,0,0,0,0,0,0,0,0,0,0,0,0,0,0,-6,5,0]} 1. d4 {[%emt 0:00:03]} Nf6 {[%emt 0:03:21]} 2. c4 {[%emt 0:00:12]} g6 {[%emt 0:00:05]} 3. Nc3 {[%emt 0:00:10]} d5 {[%emt 0:00:05]} 4. cxd5 {[%emt 0:00:38]} Nxd5 {[%emt 0:00:06]} 5. e3 {[%emt 0:00:06]} Bg7 {[%emt 0:00:22]} 6. Nxd5 {[%emt 0:00:07] D85: Exchange Grünfeld: Unusual White 7th moves and lines with 7 Nf3.} Qxd5 {[%emt 0:00:05]} 7. Ne2 {[%emt 0:00:08]} O-O {[%emt 0:00:19]} 8. Nc3 {[%emt 0:00:04]} Qd6 {[%emt 0:00:08]} 9. Be2 {[%emt 0:00:11]} c5 {[%emt 0:00:09][%cal Rc5d4]} 10. d5 {[%emt 0:00:26]} e6 {[%emt 0:01:16]} 11. e4 {[%emt 0:01:33]} exd5 {[%emt 0:03:45]} 12. exd5 {[%emt 0:00:18]} Re8 {[%emt 0:00:14]} 13. O-O {[%emt 0:00:47]} Bf5 {[%emt 0:07:32]} 14. Be3 {[%emt 0:11:54]} Nd7 {[%emt 0:13:17]} 15. Qd2 {[%emt 0:09:52]} a6 {[%emt 0:02:00] [#] Prevents Nb5.} 16. a4 $146 {[%emt 0:00:48] Against b5} ({Predecessor:} 16. g4 Be4 17. Rad1 b5 18. Bf4 Qf6 19. Bg5 Qd6 20. Bf4 Qf6 21. Bg5 Qd6 22. Bf4 {½-½ (22) Fischer,D (2367)-Loeffler,W (2394) ICCF email 2017}) 16... Rac8 {[%emt 0:09:45]} 17. Rfe1 {[%emt 0:03:56]} Be5 {[%emt 0:32:49]} 18. h3 {[%emt 0:10:08] The position is equal.} Nf6 {[%emt 0:00:32]} 19. Bf3 {[%emt 0:09:50]} h5 {[%emt 0:01:21]} 20. a5 {[%emt 0:09:23]} c4 {[%emt 0:02:29]} 21. Bd4 {[%emt 0:07:28]} Bh2+ {[%emt 0:00:48]} 22. Kh1 {[%emt 0:00:34] [#] Strongly threatening Bxf6.} Bf4 {[%emt 0:00:08]} 23. Be3 {[%emt 0:00:08]} Be5 {[%emt 0:00:44]} 24. Bd4 {[%emt 0:00:43]} Bf4 {[%emt 0:00:18]} 25. Be3 {[%emt 0:00:07]} Be5 {[%emt 0:01:41]} 26. Rac1 {[%emt 0:13:49]} Bd3 {[%emt 0:04:56]} 27. Bg5 {[%emt 0:06:30]} Nh7 {[%emt 0:04:01]} 28. Be3 {[%emt 0:02:37]} Nf6 {[%emt 0:00:07]} 29. Bg5 {[%emt 0:00:02]} Nh7 {[%emt 0:00:07]} 30. Bh6 {[%emt 0:02:11]} Nf6 {[%emt 0:06:31]} 31. Bg5 {[%emt 0:06:43] An even fight not without its subleties.  Weighted Error Value: White=0.03 (flawless) /Black=0.03 (flawless)} 1/2-1/2